bitfinex-derivatives/quotes_ETHF0:USTF0_20250114
["timestamp","ask_amount","ask_price","bid_price","bid_amount"]
[1736896510508,0.3097,3230.0,3229.9,3.5175]
[1736896510711,0.3097,3230.0,3229.9,44.3175]
[1736896511110,3.8424309,3230.2,3230.1,0.30969]
[1736896511512,0.3097,3230.1,3230.0,0.3097]
[1736896513216,3.5327409,3230.2,3229.9,44.0078]
[1736896513423,0.3097,3230.0,3229.9,3.2078]
[1736896513720,3.77146247,3230.0,3229.9,3.2078]
[1736896513910,4.26066247,3230.0,3229.9,3.2078]
[1736896514917,4.26066247,3230.0,3229.9,3.51751]
[1736896516014,4.26066247,3230.0,3229.9,3.2078]
[1736896516423,4.26066247,3230.0,3229.9,3.51751]
[1736896516821,3.2078,3230.6,3229.9,5.63882004]
[1736896517018,0.9352,3230.8,3230.3,3.2078]
[1736896517321,1.24484,3230.8,3230.7,0.30963]
[1736896517723,4.62136854,3230.8,3230.7,0.30963]
[1736896517923,0.30965,3230.6,3230.5,0.30964]
[1736896518524,0.30965,3230.6,3230.5,41.10964]
[1736896518727,3.71402049,3230.6,3230.5,40.8]
[1736896518919,3.71402049,3230.6,3230.5,41.10965]
[1736896519324,3.40437049,3230.6,3230.5,41.10965]
[1736896522229,3.71401049,3230.6,3230.5,41.10965]
[1736896525533,3.40437049,3230.6,3230.5,41.10965]
[1736896525732,3.71401049,3230.6,3230.5,41.10965]
[1736896527031,3.71401049,3230.6,3230.5,44.31745]
[1736896528229,0.3096,3231.1,3230.5,46.43882004]
[1736896528540,0.30959,3231.1,3231.0,0.3096]
[1736896528729,3.30405914,3231.0,3230.8,0.30962]
[1736896529041,0.78661,3230.9,3230.8,0.30962]
[1736896529433,1.26051,3230.9,3230.8,0.30962]
[1736896531925,0.9509,3230.9,3230.8,0.30962]
[1736896532125,0.477,3230.9,3230.8,0.30962]
[1736896532933,0.4654,3231.3,3230.7,5.63882004]
[1736896533124,0.77498,3231.3,3231.2,0.30959]
[1736896533527,4.34357603,3231.3,3231.2,0.30959]
[1736896535332,0.30959,3231.2,3231.1,3.2078]
[1736896535532,0.3096,3231.0,3230.9,0.30961]
[1736896535931,3.62930571,3231.0,3230.9,0.30961]
[1736896537532,3.31970571,3231.0,3230.7,3.2078]
[1736896537735,0.30962,3230.8,3230.7,3.2078]
[1736896538033,0.9325,3230.9,3230.6,0.30964]
[1736896538237,0.78233,3230.7,3230.6,0.30964]
[1736896539033,0.3096,3231.2,3231.1,0.30959]
[1736896539428,3.58119317,3231.2,3231.1,0.30959]
[1736896539631,0.30954,3231.8,3231.1,4.75239]
[1736896539847,0.30953,3231.9,3231.8,0.30952]
[1736896540036,0.78552,3232.0,3231.9,0.30952]
[1736896540240,4.11007813,3232.0,3231.9,0.30952]
[1736896540443,4.59516813,3232.0,3231.9,0.30952]
[1736896540737,4.59516813,3232.0,3231.9,3.2078]
[1736896540738,1.27061,3232.0,3231.9,3.2078]
[1736896541041,9.34830894,3232.0,3230.8,3.2078]
[1736896541228,0.30961,3230.9,3230.8,0.30962]
[1736896541744,0.30963,3230.7,3230.6,0.461]
[1736896541940,0.30965,3230.5,3230.4,3.2078]
[1736896542444,3.5487972,3230.5,3230.4,44.31746]
[1736896543139,3.5487972,3230.5,3230.4,44.0078]
[1736896543644,4.0439972,3230.5,3230.4,44.0078]
[1736896544546,4.0439972,3230.5,3230.4,44.31746]
[1736896544841,4.0439972,3230.5,3230.4,44.0078]
[1736896548446,4.5156972,3230.5,3230.4,44.0078]
[1736896551048,4.5156972,3230.5,3230.4,40.8]
[1736896555152,3.2391472,3230.5,3230.4,44.31746]
[1736896555450,0.30965,3230.5,3230.4,41.10966]
[1736896555746,3.68644375,3230.5,3230.4,41.10966]
[1736896557042,3.68644375,3230.5,3230.4,44.31746]
[1736896557245,3.37679375,3230.5,3230.4,44.31746]
[1736896557639,3.43743949,3230.9,3230.4,44.0078]
[1736896557840,0.30963,3230.8,3230.7,0.30962]
[1736896558352,3.74706949,3230.8,3230.7,0.30962]
[1736896558649,0.30964,3230.6,3230.5,0.78845]
[1736896560949,3.43743949,3230.8,3230.5,0.4788]
[1736896561252,0.30958,3231.3,3231.1,0.30959]
[1736896561456,0.30958,3231.3,3231.2,0.80739]
[1736896561755,3.1911995,3231.3,3231.2,0.80739]
[1736896563051,3.1911995,3231.3,3231.2,41.60739]
[1736896563548,3.1911995,3231.3,3231.2,40.8]
[1736896564751,0.30957,3231.4,3231.3,0.30957]
[1736896565146,3.56787216,3231.4,3231.3,0.30957]
[1736896565653,0.30958,3231.3,3231.2,40.8]
[1736896566048,3.80925375,3231.3,3231.2,40.8]
[1736896566255,3.80925375,3231.3,3231.0,3.2078]
[1736896566256,0.30959,3231.1,3231.0,3.2078]
[1736896566649,3.653012,3231.1,3231.0,44.0078]
[1736896567355,3.653012,3231.1,3231.0,3.2078]
[1736896569054,6.551222,3231.1,3230.9,40.8]
[1736896569251,0.30966,3230.4,3230.3,3.51747]
[1736896569455,0.30966,3230.4,3230.3,3.2078]
[1736896569657,3.73122369,3230.4,3230.3,44.0078]
[1736896570453,3.73122369,3230.4,3230.3,44.31747]
[1736896572559,3.73122369,3230.4,3230.3,44.0078]
[1736896572964,3.73122369,3230.4,3230.3,44.31747]
[1736896576253,0.30966,3230.5,3230.3,44.0078]
[1736896576459,0.30966,3230.5,3230.4,3.22708004]
[1736896579266,0.30966,3230.5,3230.4,0.79606]
[1736896582669,0.30965,3230.6,3230.5,0.30964]
[1736896583069,0.30965,3230.6,3230.5,0.78994]
[1736896584063,0.30965,3230.6,3230.5,0.4803]
[1736896584770,0.30965,3230.6,3230.5,0.78995]
[1736896587070,0.30965,3230.5,3230.4,2.74067004]
[1736896591275,0.30965,3230.5,3230.4,0.30965]
[1736896611394,0.30965,3230.5,3230.4,1.46015221]
[1736896613295,1.15050221,3230.8,3230.3,48.85664759]
[1736896613591,1.69726,3230.4,3230.3,45.64884759]
[1736896613989,5.14564472,3230.4,3230.3,45.64884759]
[1736896614395,5.14564472,3230.4,3230.3,40.8]
[1736896620597,5.14564472,3230.4,3230.3,41.10967]
[1736896621298,5.14564472,3230.4,3230.3,40.8]
[1736896622405,5.14564472,3230.4,3230.3,41.10967]
[1736896625999,3.44838472,3230.4,3230.3,44.31747]
[1736896626299,1.4456,3231.1,3230.9,0.30961]
[1736896626496,0.3096,3231.0,3230.9,2.74041426]
[1736896626892,0.3096,3231.0,3230.9,43.54041426]
[1736896628511,3.54744292,3231.0,3230.9,40.8]
[1736896628807,0.30962,3230.8,3230.7,8.05664759]
[1736896629004,0.30962,3230.8,3230.7,8.36627759]
[1736896629195,3.79395129,3230.8,3230.7,8.05664759]
[1736896629396,3.79395129,3230.8,3230.7,3.2078]
[1736896629595,3.79395129,3230.8,3230.7,3.51743]
[1736896630201,3.79395129,3230.8,3230.7,3.2078]
[1736896630392,3.79395129,3230.8,3230.6,40.8]
[1736896630393,3.48433129,3230.8,3230.6,40.8]
[1736896630597,0.30964,3230.6,3230.5,4.84884759]
[1736896631105,4.54726246,3230.6,3230.5,4.84884759]
[1736896631303,4.54726246,3230.6,3230.3,44.31747]
[1736896631304,0.30966,3230.4,3230.3,44.31747]
[1736896631705,3.56798246,3230.4,3230.3,44.31747]
[1736896632205,3.56798246,3230.4,3230.3,44.0078]
[1736896632909,3.56798246,3230.4,3230.3,44.31747]
[1736896636112,3.56798246,3230.4,3230.3,44.0078]
[1736896648809,3.56798246,3230.4,3230.3,40.8]
[1736896663015,3.25832246,3230.4,3230.1,1.61839669]
[1736896663317,0.30968,3230.2,3230.1,1.61839669]
[1736896664316,0.30968,3230.4,3230.1,1.61839669]
[1736896664520,0.30965,3230.7,3230.6,0.30963]
[1736896664714,3.2078,3231.2,3230.6,1.235]
[1736896664922,3.2078,3231.2,3231.1,1.46038669]
[1736896664923,3.51739,3231.2,3231.1,1.46038669]
[1736896665120,3.51739,3231.2,3231.1,42.26038669]
[1736896665422,0.30959,3231.2,3231.1,41.95079669]
[1736896669121,2.09359669,3231.6,3231.1,41.95079669]
[1736896669122,0.4815,3231.6,3231.1,41.95079669]
[1736896669339,0.30955,3231.6,3231.5,1.15079669]
[1736896669730,0.30955,3231.6,3231.5,2.08319669]
[1736896671121,0.30955,3231.6,3231.5,2.39275669]
[1736896671324,0.30955,3231.6,3231.5,1.24196]
[1736896671523,0.30955,3231.6,3231.5,0.9324]
[1736896672126,1.70462,3231.9,3231.3,0.30957]
[1736896672332,0.30958,3231.4,3231.3,0.30957]
[1736896672932,0.9308,3231.9,3231.2,4.1331]
[1736896673131,0.30958,3231.3,3231.2,4.44268]
[1736896674625,0.30958,3231.3,3231.2,3.6565]
[1736896674833,3.56002621,3231.3,3231.2,3.6565]
[1736896675626,3.56002621,3231.3,3231.2,0.4487]
[1736896677836,4.03232621,3231.3,3231.2,0.4487]
[1736896680726,3.72274621,3231.3,3231.1,40.8]
[1736896680933,0.30959,3231.2,3231.1,40.8]
[1736896682435,3.724956,3231.2,3231.1,40.8]
[1736896694659,0.30958,3231.4,3231.1,40.8]
[1736896694847,0.30957,3231.4,3231.3,1.15015573]
[1736896695152,3.57984394,3231.4,3231.3,1.15015573]
[1736896695350,4.51294394,3231.4,3231.3,1.15015573]
[1736896695746,0.30958,3231.3,3231.2,0.923]
[1736896695954,0.30958,3231.3,3231.2,1.23259]
[1736896696154,0.30958,3231.3,3231.2,0.923]
[1736896696657,0.30959,3231.2,3231.1,40.8]
[1736896697055,3.60745389,3231.2,3231.1,40.8]
[1736896700055,3.60745389,3231.2,3231.1,41.95015573]
[1736896700848,0.30959,3231.2,3231.1,42.25974573]
[1736896701053,0.30959,3231.2,3231.1,42.73174573]
[1736896701252,2.997,3231.5,3231.1,42.42215573]
[1736896701555,3.60522215,3231.4,3231.3,1.45972573]
[1736896703653,3.60522215,3231.4,3231.3,4.66752573]
[1736896706950,3.60522215,3231.4,3231.3,4.35795573]
[1736896707150,3.60522215,3231.4,3231.1,41.272]
[1736896707151,3.60522215,3231.4,3231.1,41.95015573]
[1736896707350,0.30959,3231.2,3231.1,41.95015573]
[1736896707556,0.30959,3231.2,3231.1,42.25974573]
[1736896708659,0.30959,3231.2,3231.1,41.95015573]
[1736896708960,0.78769,3231.2,3231.1,40.8]
[1736896711458,0.78769,3231.2,3231.1,41.10959]
[1736896712964,0.30959,3231.2,3231.1,41.10959]
[1736896713259,0.30957,3231.5,3231.4,0.30956]
[1736896713465,0.30957,3231.5,3231.4,1.45971573]
[1736896713664,3.56955825,3231.5,3231.4,1.45971573]
[1736896718764,0.4826,3231.9,3231.4,1.15015573]
[1736896718965,0.30952,3231.9,3231.8,1.45967573]
[1736896719366,3.76548578,3231.9,3231.8,1.45967573]
[1736896719763,3.76548578,3231.9,3231.8,1.15015573]
[1736896720471,3.76548578,3231.9,3231.8,1.45968573]
[1736896721161,0.30952,3231.9,3231.8,1.45968573]
[1736896721362,3.2078,3232.1,3231.8,1.45968573]
[1736896721568,3.5173,3232.1,3232.0,1.45966573]
[1736896721768,0.3095,3232.1,3232.0,1.45966573]
[1736896722465,0.3095,3232.1,3232.0,42.25966573]
[1736896726468,0.3095,3232.1,3232.0,41.95015573]
[1736896727775,0.3095,3232.1,3232.0,42.25966573]
[1736896729971,0.4515,3232.2,3232.0,41.95015573]
[1736896730275,0.761,3232.2,3232.1,0.3095]
[1736896730476,0.3095,3232.2,3232.1,0.7655]
[1736896730672,0.4748,3232.4,3232.1,0.456]
[1736896730872,0.30946,3232.6,3232.5,0.30945]
[1736896731071,0.30946,3232.6,3232.5,42.25960573]
[1736896734276,0.30946,3232.6,3232.5,41.95015573]
[1736896734476,0.30946,3232.6,3232.5,1.15015573]
[1736896737472,0.30946,3232.6,3232.5,41.95015573]
[1736896738786,0.30946,3232.6,3232.5,42.25961573]
[1736896739285,0.30946,3232.6,3232.5,41.95015573]
[1736896740583,0.30946,3232.6,3232.5,42.25961573]
[1736896740982,0.80074,3232.8,3232.7,0.30944]
[1736896741180,0.80074,3232.8,3232.7,1.45959573]
[1736896741384,4.36164892,3232.8,3232.7,1.45959573]
[1736896741680,4.36164892,3232.8,3232.7,42.25959573]
[1736896742181,0.7735,3233.2,3232.7,42.25959573]
[1736896742182,0.77345,3233.4,3232.7,45.15795573]
[1736896742384,0.3094,3233.2,3233.1,3.51719]
[1736896742684,0.3094,3233.2,3233.1,4.66734573]
[1736896743078,2.19741,3233.6,3233.1,4.35795573]
[1736896743278,2.19741,3233.6,3233.2,0.4731]
[1736896743483,0.30938,3233.3,3233.2,0.78249]
[1736896746087,0.30938,3233.4,3233.3,0.30937]
[1736896746475,3.78028744,3233.4,3233.3,0.30937]
[1736896746681,3.47090744,3233.5,3233.2,0.4731]
[1736896746884,0.77328,3234.1,3233.4,2.42620535]
[1736896747081,0.965,3233.9,3233.5,3.2078]
[1736896747282,0.30937,3233.6,3233.5,3.51716]
[1736896748081,0.30937,3233.6,3233.5,44.31716]
[1736896748391,0.30935,3233.7,3233.6,0.30934]
[1736896748582,0.30935,3233.7,3233.5,44.0078]
[1736896748583,0.30936,3233.6,3233.5,44.31716]
[1736896749682,3.89981188,3233.8,3233.7,0.30935]
[1736896750490,0.30935,3233.7,3233.6,0.30935]
[1736896751385,0.3093,3234.2,3233.5,44.0078]
[1736896751690,3.54757171,3234.1,3234.0,2.73551535]
[1736896752796,3.23826171,3234.1,3233.7,2.42620535]
[1736896752990,0.30935,3233.8,3233.7,2.73554535]
[1736896755588,0.30933,3233.9,3233.8,0.30932]
[1736896757293,3.23826171,3234.1,3233.7,2.42620535]
[1736896757594,3.23826171,3234.1,3233.9,3.2078]
[1736896757801,3.54758171,3234.1,3234.0,0.30932]
[1736896759192,3.23826171,3234.1,3233.9,3.2078]
[1736896759401,0.30932,3234.0,3233.9,3.2078]
[1736896759699,0.30932,3234.0,3233.9,3.51713]
[1736896760496,0.30932,3234.0,3233.9,4.01423]
[1736896760900,3.54757171,3234.1,3234.0,0.30932]
[1736896761194,3.23826171,3234.1,3234.0,0.30932]
[1736896762301,3.54757171,3234.1,3234.0,0.30932]
[1736896763397,3.23826171,3234.1,3234.0,1.45731214]
[1736896763598,1.23959,3234.3,3234.2,0.3093]
[1736896763799,0.9303,3234.3,3234.2,1.45729214]
[1736896763997,0.77312,3234.8,3234.2,1.45729214]
[1736896763998,0.77309,3234.9,3234.2,4.35579214]
[1736896764198,1.24036,3234.7,3234.6,0.30925]
[1736896764407,4.24326883,3234.7,3234.6,0.30925]
[1736896764699,0.4738,3234.7,3234.6,3.51705]
[1736896764906,0.4738,3234.7,3234.6,4.66504214]
[1736896765499,0.30924,3234.9,3234.6,4.35579214]
[1736896765715,0.9231,3235.0,3234.8,1.14799214]
[1736896765899,0.4738,3235.0,3234.9,0.30923]
[1736896766113,3.2078,3236.0,3235.0,0.77306]
[1736896766299,26.58429,3238.2,3235.8,3.2078]
[1736896766300,0.4493,3235.9,3235.8,3.2078]
[1736896766497,0.30913,3236.0,3235.9,0.30914]
[1736896766704,3.63755866,3236.0,3235.9,0.30914]
[1736896766913,3.32842866,3236.0,3235.9,1.92233214]
[1736896767302,3.32842866,3236.0,3235.9,0.4652]
[1736896767504,3.63755866,3236.0,3235.9,0.4652]
[1736896768907,3.63755866,3236.0,3235.8,5.93910351]
[1736896768908,3.32842866,3236.0,3235.8,5.62996351]
[1736896769107,0.30914,3235.9,3235.8,5.62996351]
[1736896769815,0.30916,3235.6,3235.5,2.73133351]
[1736896770205,3.51949537,3235.9,3235.5,2.73133351]
[1736896770408,0.30914,3235.9,3235.8,2.42216351]
[1736896770808,3.7608301,3235.9,3235.8,2.42216351]
[1736896771011,4.2489301,3235.9,3235.8,2.42216351]
[1736896771608,3.9397901,3235.9,3235.5,2.42216351]
[1736896771912,0.30916,3235.7,3235.6,0.30916]
[1736896777313,0.30916,3235.6,3235.5,2.73132351]
[1736896778813,0.30916,3235.7,3235.6,0.30916]
[1736896780315,4.2489301,3235.9,3235.8,0.30915]
[1736896780612,0.30915,3235.8,3235.7,3.51695]
[1736896781512,0.30915,3235.8,3235.7,3.2078]
[1736896782121,0.4881,3235.9,3235.7,3.51695]
[1736896782308,0.79724,3235.9,3235.8,2.73131351]
[1736896782509,0.30913,3236.0,3235.9,0.30914]
[1736896782911,0.4623,3236.1,3235.8,2.89576351]
[1736896783112,0.30914,3235.9,3235.8,3.20490351]
[1736896784519,0.30914,3235.9,3235.8,2.89576351]
[1736896784718,0.30914,3235.9,3235.8,3.20491351]
[1736896785308,0.30914,3235.9,3235.8,2.89576351]
[1736896786019,0.30914,3235.9,3235.8,3.20491351]
[1736896788518,0.30914,3235.9,3235.8,2.89576351]
[1736896788714,0.30914,3235.9,3235.8,3.20491351]
[1736896793426,0.30914,3235.9,3235.8,1.92940566]
[1736896797121,0.30914,3235.9,3235.8,1.62025566]
[1736896799522,0.30914,3235.9,3235.8,1.92940566]
[1736896799723,0.30914,3235.9,3235.6,4.35445566]
[1736896799724,0.30915,3235.7,3235.6,4.35445566]
[1736896801725,0.30915,3235.7,3235.6,4.66361566]
[1736896801929,0.30915,3235.7,3235.6,4.35445566]
[1736896802327,0.30915,3235.7,3235.2,2.011]
[1736896802328,1.14665566,3235.7,3235.2,3.2078]
[1736896802528,0.30919,3235.3,3235.2,4.35445566]
[1736896805427,0.30919,3235.3,3235.2,3.2078]
[1736896805930,0.30925,3234.7,3234.6,3.2078]
[1736896806337,0.30925,3234.7,3234.2,5.33894759]
[1736896806338,0.30929,3234.3,3234.2,5.33894759]
[1736896806628,0.30929,3234.3,3234.2,0.4901]
[1736896807427,2.16538,3234.6,3234.1,0.3093]
[1736896807631,2.16538,3234.6,3234.0,2.42347922]
[1736896807931,2.16538,3234.6,3234.0,2.73279922]
[1736896807932,0.30931,3234.1,3234.0,2.73279922]
[1736896808127,3.48514121,3234.5,3234.0,2.42347922]
[1736896808429,0.3093,3234.3,3234.2,2.73276922]
[1736896808832,0.3093,3234.3,3234.2,2.42347922]
[1736896809334,0.3093,3234.3,3234.2,2.73277922]
[1736896810431,0.3093,3234.3,3234.2,2.42347922]
[1736896811329,0.3093,3234.3,3234.2,2.73277922]
[1736896811528,0.30928,3234.5,3234.4,0.30928]
[1736896811736,0.30928,3234.4,3234.3,0.78768]
[1736896812031,0.30928,3234.4,3234.3,1.26128]
[1736896812230,0.77311,3234.8,3234.2,2.42347922]
[1736896812534,0.30929,3234.3,3234.2,2.42347922]
[1736896812725,0.77317,3234.6,3234.0,1.7156]
[1736896812927,0.77321,3234.4,3233.9,6.10967922]
[1736896813131,0.30932,3234.0,3233.9,6.41899922]
[1736896813532,0.30932,3234.0,3233.9,6.41900922]
[1736896813934,0.30932,3234.0,3233.9,6.10967922]
[1736896814240,0.30932,3234.0,3233.9,6.41900922]
[1736896815438,0.30932,3234.0,3233.9,3.21120922]
[1736896816237,0.30932,3234.0,3233.9,2.90187922]
[1736896816436,0.30933,3233.9,3233.8,3.2078]
[1736896816641,1.24363,3233.9,3233.8,3.2078]
[1736896818932,4.24821953,3233.9,3233.6,2.42347922]
[1736896819238,0.30935,3233.7,3233.6,2.42347922]
[1736896819544,0.30937,3233.5,3233.4,3.51717]
[1736896819839,3.56701225,3233.7,3233.5,0.30937]
[1736896819840,0.30936,3233.6,3233.5,0.30937]
[1736896820636,0.30936,3233.6,3233.5,0.76617]
[1736896821238,0.30935,3233.7,3233.6,0.30934]
[1736896821443,0.30935,3233.7,3233.6,2.73281922]
[1736896824343,3.81356344,3234.1,3233.6,2.42347922]
[1736896824547,0.30933,3234.0,3233.9,2.42347922]
[1736896824845,0.76903,3234.0,3233.9,2.42347922]
[1736896825539,0.76903,3234.0,3233.9,2.91707922]
[1736896826739,0.30933,3234.0,3233.9,3.22640922]
[1736896826939,0.3093,3234.2,3234.1,0.30931]
[1736896827133,3.2078,3234.4,3234.0,0.958]
[1736896827345,0.30927,3234.6,3234.5,0.30926]
[1736896828048,0.30925,3234.7,3234.6,0.30926]
[1736896828344,0.77308,3235.0,3234.6,0.30926]
[1736896828345,0.30924,3235.0,3234.9,0.30923]
[1736896828545,0.30924,3235.0,3234.9,2.73270922]
[1736896828848,0.492,3235.4,3234.9,2.42347922]
[1736896829150,0.30922,3235.0,3234.9,2.73269922]
[1736896830545,0.30922,3235.0,3234.9,2.42347922]
[1736896831141,0.30923,3234.9,3234.8,3.2078]
[1736896831341,0.30925,3234.7,3234.6,2.73273922]
[1736896831544,0.30925,3234.7,3234.6,2.42347922]
[1736896832546,0.30926,3234.6,3234.5,1.243]
[1736896833555,0.4833,3234.8,3234.0,7.33327922]
[1736896833556,1.25643,3234.8,3234.0,7.33327922]
[1736896833739,1.25643,3234.8,3234.4,2.42347922]
[1736896834044,0.30927,3234.5,3234.4,2.42347922]
[1736896834638,3.44864765,3234.7,3234.1,2.73277922]
[1736896834843,0.3093,3234.2,3234.1,2.73277922]
[1736896835642,0.3093,3234.2,3234.1,2.42347922]
[1736896835850,0.4679,3234.4,3234.0,4.4508]
[1736896835851,0.30931,3234.1,3234.0,4.4508]
[1736896836941,0.30931,3234.1,3234.0,3.2078]
[1736896838147,0.4631,3234.2,3233.9,0.30932]
[1736896838449,0.30932,3234.0,3233.9,0.30932]
[1736896838647,0.30933,3233.9,3233.8,7.18660922]
[1736896840646,0.30933,3233.9,3233.8,5.63127922]
[1736896844446,0.30933,3233.9,3233.8,3.2078]
[1736896847255,1.23637,3234.2,3233.7,0.4529]
[1736896847459,0.30934,3233.8,3233.7,0.4529]
[1736896849258,0.30935,3233.7,3233.6,3.2078]
[1736896851655,0.30935,3233.7,3233.6,3.51716]
[1736896853050,3.57463372,3233.9,3233.8,0.30934]
[1736896853259,0.3093,3234.3,3234.2,0.30929]
[1736896853666,0.30932,3234.1,3234.0,0.3093]
[1736896853870,0.30932,3234.1,3234.0,2.73277922]
[1736896854367,0.30932,3234.1,3234.0,5.94057922]
[1736896857567,0.4679,3234.4,3234.0,5.63127922]
[1736896857767,0.30931,3234.2,3234.1,0.3093]
[1736896858462,0.30926,3234.7,3234.6,0.30925]
[1736896858659,0.30923,3234.9,3234.8,0.30924]
[1736896859668,0.30923,3234.9,3234.8,0.30923]
[1736896859669,0.30924,3234.9,3234.8,0.30923]
[1736896859865,0.77874,3234.9,3234.8,0.30923]
[1736896861668,0.4695,3234.9,3234.8,0.30923]
[1736896861871,0.4772,3235.2,3234.8,0.30923]
[1736896861872,0.30921,3235.2,3235.1,0.30921]
[1736896862165,0.30917,3235.5,3235.3,0.30919]
[1736896862368,1.70542,3236.1,3235.6,0.30916]
[1736896862571,0.30917,3235.6,3235.5,0.30917]
[1736896862771,3.30235997,3235.8,3235.4,2.88877922]
[1736896863072,0.30917,3235.5,3235.4,3.19795922]
[1736896863565,0.30917,3235.5,3235.4,2.42347922]
[1736896863874,0.30918,3235.4,3235.3,3.2078]
[1736896864080,0.80338,3235.4,3235.3,3.2078]
[1736896869570,4.34571345,3235.4,3235.3,3.2078]
[1736896872473,0.3092,3235.2,3235.1,0.30921]
[1736896873678,3.51982837,3235.2,3234.9,0.4958]
[1736896873979,0.30922,3235.0,3234.9,0.4958]
[1736896874871,0.30923,3234.9,3234.8,3.2078]
[1736896875071,0.79463,3234.9,3234.8,3.2078]
[1736896875277,4.08604125,3234.9,3234.8,3.2078]
[1736896878078,3.77681125,3234.9,3234.6,0.4761]
[1736896878275,0.49,3234.8,3234.4,3.2078]
[1736896878478,0.30927,3234.5,3234.4,3.2078]
[1736896879079,0.30927,3234.5,3234.4,3.51708]
[1736896879690,0.30927,3234.5,3234.4,3.2078]
[1736896880073,0.30927,3234.5,3234.4,3.51708]
[1736896880589,0.30927,3234.5,3234.4,0.30928]
[1736896880976,0.30928,3234.4,3234.3,0.80198]
[1736896883378,0.4734,3234.6,3234.3,0.4927]
[1736896883576,0.30928,3234.5,3234.4,0.30927]
[1736896886679,0.9875,3234.8,3234.3,0.4927]
[1736896886986,0.30928,3234.4,3234.3,0.80198]
[1736896894690,3.98095,3234.7,3233.9,1.249]
[1736896894887,0.30933,3233.9,3233.8,4.00203]
[1736896895999,0.30933,3233.9,3233.8,4.49093]
[1736896897206,0.30933,3233.9,3233.8,4.1816]
[1736896897504,0.30933,3233.9,3233.8,0.4889]
[1736896897801,0.30936,3233.6,3233.5,1.55236]
[1736896898195,0.30936,3233.6,3233.5,1.243]
[1736896898506,0.30937,3233.5,3233.4,3.2078]
[1736896904113,4.31038672,3233.7,3233.2,0.4693]
[1736896904417,0.30938,3233.3,3233.2,0.77869]
[1736896911516,0.9711,3233.7,3233.2,0.4693]
[1736896911714,0.30937,3233.5,3233.4,2.42347922]
[1736896911919,0.30938,3233.3,3233.2,0.77869]
[1736896912416,0.30938,3233.3,3233.2,0.4693]
[1736896912613,0.3094,3233.1,3233.0,3.2078]
[1736896913516,0.30943,3232.8,3232.7,3.21281922]
[1736896915515,0.30943,3232.8,3232.7,6.42061922]
[1736896919626,0.30942,3233.0,3232.9,0.30941]
[1736896919826,0.30943,3232.8,3232.7,3.51724]
[1736896920511,0.30943,3232.8,3232.7,3.2078]
[1736896920835,0.30947,3232.5,3232.4,0.30946]
[1736896921021,0.30947,3232.5,3232.4,0.80256]
[1736896921723,0.30946,3232.6,3232.5,0.30945]
[1736896921918,0.9328,3232.7,3232.4,2.91657922]
[1736896922122,3.31352773,3232.6,3232.5,0.30946]
[1736896922323,0.75952,3232.9,3232.5,0.30946]
[1736896922324,0.78322,3233.0,3232.5,2.89217922]
[1736896922525,0.30942,3233.0,3232.9,0.30942]
[1736896922926,0.30942,3233.0,3232.9,0.80252]
[1736896926622,0.30942,3233.0,3232.9,0.4931]
[1736896926831,0.30942,3233.0,3232.9,0.80252]
[1736896929338,0.9328,3233.2,3232.9,0.4931]
[1736896929533,0.4827,3233.2,3233.1,3.2078]
[1736896929733,0.4827,3233.2,3233.1,5.94067922]
[1736896930229,0.30939,3233.3,3233.2,0.30939]
[1736896930623,0.4645,3233.6,3233.1,6.11127922]
[1736896930928,0.30937,3233.5,3233.4,0.30936]
[1736896937834,0.30933,3233.9,3233.7,0.30935]
[1736896938030,0.30933,3233.9,3233.8,2.73281922]
[1736896939040,0.30934,3233.8,3233.7,0.30934]
[1736896939542,0.30933,3233.9,3233.8,0.30932]
[1736896941234,0.9616,3234.1,3233.6,4.9283]
[1736896941426,0.9616,3234.1,3234.0,0.30932]
[1736896941427,0.4753,3234.1,3234.0,0.30932]
[1736896941632,0.77318,3234.5,3234.0,0.30932]
[1736896941633,0.9281,3234.5,3234.0,3.2078]
[1736896941836,1.70807,3234.5,3234.4,0.30928]
[1736896943536,1.3988,3234.5,3234.4,3.51708]
[1736896943737,0.4707,3234.5,3234.4,5.94055922]
[1736896943936,0.30926,3234.7,3234.4,5.63127922]
[1736896944236,0.9549,3235.0,3234.8,0.30923]
[1736896944237,0.30924,3234.9,3234.8,0.30923]
[1736896944442,0.30924,3234.9,3234.8,3.51703]
[1736896945537,0.30924,3234.9,3234.8,3.2078]
[1736896950742,0.30924,3234.9,3234.8,3.6638]
[1736896953040,0.30924,3234.9,3234.8,3.2078]
[1736896957050,3.85707558,3234.9,3234.8,3.2078]
[1736896957637,3.54783558,3234.9,3234.4,3.2078]
[1736896957842,3.2078,3234.7,3234.0,3.2078]
[1736896958043,0.30931,3234.1,3234.0,3.51711]
[1736896958833,0.30931,3234.1,3234.0,3.2078]
[1736896960249,0.30932,3234.0,3233.9,0.4594]
[1736896961949,0.30935,3233.7,3233.6,3.2078]
[1736896962547,0.30935,3233.7,3233.6,3.51716]
[1736896967262,3.6694,3234.2,3233.6,3.2078]
[1736896967454,3.6694,3234.2,3233.7,0.9764]
[1736896967761,0.30934,3233.8,3233.7,0.79835]
[1736896970767,3.66208106,3234.1,3234.0,3.51712]
[1736896971066,0.3093,3234.3,3234.2,0.30929]
[1736896971470,0.9353,3234.5,3234.1,1.4185]
[1736896971471,0.3093,3234.2,3234.1,1.7278]
[1736896971660,0.3093,3234.2,3234.1,0.7854]
[1736896972270,0.3093,3234.2,3234.1,0.4761]
[1736896973970,0.3093,3234.2,3234.1,0.78541]
[1736896974267,0.3093,3234.2,3234.1,0.4761]
[1736896978469,0.3093,3234.2,3234.1,0.78541]
[1736896986780,1.70849,3234.5,3234.1,0.78541]
[1736896986781,0.4622,3234.5,3234.1,3.67282922]
[1736896987076,0.30927,3234.6,3234.5,0.30926]
[1736896987383,0.3093,3234.3,3234.2,0.30929]